fUSD/lending_fUSD_20250611
["ID","MTS","AMOUNT","RATE_DAILY","PERIOD"]
[365327758,1749601844473,-460.0,0.00016767,2]
[365327760,1749601844482,-293.70316802,0.00016767,2]
[365327762,1749601844491,-460.0,0.00016767,2]
[365327764,1749601844500,-460.0,0.00016767,2]
[365327766,1749601844509,-298.59223304,0.00016767,2]
[365327768,1749601844519,-460.0,0.00016767,2]
[365327770,1749601844528,-460.0,0.00016767,2]
[365327772,1749601844537,-460.0,0.00016767,2]
[365327774,1749601844547,-285.81420537,0.00016767,2]
[365327776,1749601844556,-217.13846858,0.00016767,2]
[365327778,1749601844565,-460.0,0.00016767,2]
[365327780,1749601844574,-460.0,0.00016767,2]
[365327782,1749601844584,-460.0,0.00016767,2]
[365327784,1749601844593,-299.48832497,0.00016767,2]
[365327786,1749601844602,-460.0,0.00016767,2]
[365327788,1749601844612,-286.22458759,0.00016767,2]
[365327790,1749601844625,-460.0,0.00016767,2]
[365327792,1749601844636,-460.0,0.00016767,2]
[365327795,1749601844646,-460.0,0.00016767,2]
[365327796,1749601844655,-490.0,0.00016767,2]
[365327798,1749601844664,-460.0,0.00016767,2]
[365327800,1749601844673,-460.0,0.00016767,2]
[365327802,1749601844683,-460.0,0.00016767,2]
[365327804,1749601844692,-460.0,0.00016767,2]
[365327806,1749601844702,-460.0,0.00016767,2]
[365327808,1749601844711,-460.0,0.00016767,2]
[365327810,1749601844720,-460.0,0.00016767,2]
[365327812,1749601844729,-460.0,0.00016767,2]
[365327814,1749601844739,-490.0,0.00016767,2]
[365327816,1749601844748,-460.0,0.00016767,2]
[365327818,1749601844761,-460.0,0.00016767,2]
[365327820,1749601844770,-460.0,0.00016767,2]
[365327822,1749601844782,-554.31948951,0.00016767,2]
[365327824,1749601844791,-460.0,0.00016767,2]
[365327826,1749601844801,-460.0,0.00016767,2]
[365327828,1749601844810,-460.0,0.00016767,2]
[365327830,1749601844820,-460.0,0.00016767,2]
[365327832,1749601844829,-409.38,0.00016767,2]
[365327834,1749601844840,-153.43503444,0.00016767,2]
[365327836,1749601844850,-460.0,0.00016767,2]
[365327838,1749601844859,-460.0,0.00016767,2]
[365327840,1749601844871,-637.03,0.00016767,2]
[365327842,1749601844882,-460.0,0.00016767,2]
[365327844,1749601844892,-330.51670818,0.00016767,2]
[365327846,1749601844901,-482.5,0.00016767,2]
[365327848,1749601844911,-460.0,0.00016767,2]
[365327850,1749601844921,-460.0,0.00016767,2]
[365327852,1749601844931,-354.5,0.00016767,2]
[365327854,1749601844941,-460.0,0.00016767,2]
[365327856,1749601844951,-460.0,0.00016767,2]
[365327858,1749601844960,-460.0,0.00016767,2]
[365327860,1749601844970,-460.0,0.00016767,2]
[365327862,1749601844979,-270.46,0.00016767,2]
[365327863,1749601844989,-460.0,0.00016767,2]
[365327865,1749601844999,-189.94,0.00016767,2]
[365327868,1749601845009,-460.0,0.00016767,2]
[365327869,1749601845019,-460.0,0.00016767,2]
[365327871,1749601845028,-463.11172564,0.00016767,2]
[365327874,1749601845037,-490.0,0.00016767,2]
[365327876,1749601845046,-460.0,0.00016767,2]
[365327877,1749601845056,-460.0,0.00016767,2]
[365327880,1749601845066,-490.0,0.00016767,2]
[365327882,1749601845076,-460.0,0.00016767,2]
[365327884,1749601845085,-460.0,0.00016767,2]
[365327886,1749601845095,-272.08,0.00016767,2]
[365327888,1749601845104,-460.0,0.00016767,2]
[365327889,1749601845115,-614.62,0.00016767,2]
[365327892,1749601845126,-460.0,0.00016767,2]
[365327894,1749601845137,-460.0,0.00016767,2]
[365327896,1749601845146,-506.44,0.00016767,2]
[365327898,1749601845156,-460.0,0.00016767,2]
[365327900,1749601845165,-260.94,0.00016767,2]
[365327902,1749601845174,-460.0,0.00016767,2]
[365327904,1749601845184,-460.0,0.00016767,2]
[365327906,1749601845193,-460.0,0.00016767,2]
[365327908,1749601845203,-199.92,0.00016767,2]
[365327910,1749601845212,-460.0,0.00016767,2]
[365327912,1749601845222,-460.0,0.00016767,2]
[365327913,1749601845231,-460.0,0.00016767,2]
[365327915,1749601845240,-460.0,0.00016767,2]
[365327917,1749601845249,-636.04,0.00016767,2]
[365327919,1749601845258,-535.62,0.00016767,2]
[365327921,1749601845267,-490.0,0.00016767,2]
[365327923,1749601845276,-460.0,0.00016767,2]
[365327925,1749601845285,-185.36,0.00016767,2]
[365327927,1749601845295,-460.0,0.00016767,2]
[365327929,1749601845303,-460.0,0.00016767,2]
[365327931,1749601845313,-460.0,0.00016767,2]
[365327933,1749601845322,-531.55565959,0.00016767,2]
[365327935,1749601845331,-460.0,0.00016767,2]
[365327937,1749601845340,-490.0,0.00016767,2]
[365327939,1749601845350,-460.0,0.00016767,2]
[365327941,1749601845359,-460.0,0.00016767,2]
[365327943,1749601845371,-460.0,0.00016767,2]
[365327945,1749601845380,-490.0,0.00016767,2]
[365327947,1749601845389,-460.0,0.00016767,2]
[365327949,1749601845398,-460.0,0.00016767,2]
[365327951,1749601845407,-539.02548108,0.00016767,2]
[365327953,1749601845416,-490.0,0.00016767,2]
[365327955,1749601845425,-460.0,0.00016767,2]
[365327957,1749601845435,-460.0,0.00016767,2]
[365327959,1749601845444,-490.0,0.00016767,2]
[365327961,1749601845453,-460.0,0.00016767,2]
[365327963,1749601845463,-460.0,0.00016767,2]
[365327965,1749601845472,-428.01788539,0.00016767,2]
[365327967,1749601845482,-460.0,0.00016767,2]
[365327969,1749601845491,-460.0,0.00016767,2]
[365327971,1749601845500,-460.0,0.00016767,2]
[365327973,1749601845510,-350.08,0.00016767,2]
[365327975,1749601845519,-289.32775095,0.00016767,2]
[365327977,1749601845528,-300.0,0.00016767,2]
[365327979,1749601845537,-460.0,0.00016767,2]
[365327981,1749601845546,-291.76380089,0.00016767,2]
[365327983,1749601845555,-460.0,0.00016767,2]
[365327985,1749601845565,-460.0,0.00016767,2]
[365327987,1749601845574,-569.74,0.00016767,2]
[365327988,1749601845583,-460.0,0.00016767,2]
[365327989,1749601845591,-490.0,0.00016767,2]
[365327990,1749601845600,-460.0,0.00016767,2]
[365327991,1749601845609,-460.0,0.00016767,2]
[365327992,1749601845619,-460.0,0.00016767,2]
[365327993,1749601845628,-490.0,0.00016767,2]
[365327994,1749601845638,-460.0,0.00016767,2]
[365327995,1749601845646,-460.0,0.00016767,2]
[365327996,1749601845655,-460.0,0.00016767,2]
[365327998,1749601845664,-460.0,0.00016767,2]
[365328000,1749601845673,-460.0,0.00016767,2]
[365328002,1749601845683,-460.0,0.00016767,2]
[365328004,1749601845691,-289.2,0.00016767,2]
[365328006,1749601845701,-460.0,0.00016767,2]
[365328008,1749601845710,-460.0,0.00016767,2]
[365328010,1749601845719,-460.0,0.00016767,2]
[365328012,1749601845728,-460.0,0.00016767,2]
[365328014,1749601845737,-460.0,0.00016767,2]
[365328016,1749601845747,-490.0,0.00016767,2]
[365328018,1749601845756,-460.0,0.00016767,2]
[365328020,1749601845766,-490.0,0.00016767,2]
[365328022,1749601845778,-460.0,0.00016767,2]
[365328024,1749601845787,-352.2,0.00016767,2]
[365328026,1749601845796,-460.0,0.00016767,2]
[365328028,1749601845805,-460.0,0.00016767,2]
[365328030,1749601845815,-460.0,0.00016767,2]
[365328032,1749601845825,-460.0,0.00016767,2]
[365328034,1749601845834,-500.0,0.00016767,2]
[365328036,1749601845844,-490.0,0.00016767,2]
[365328038,1749601845854,-460.0,0.00016767,2]
[365328040,1749601845865,-490.0,0.00016767,2]
[365328042,1749601845875,-490.0,0.00016767,2]
[365328044,1749601845884,-490.0,0.00016767,2]
[365328046,1749601845894,-392.62,0.00016767,2]
[365328048,1749601845904,-280.0,0.00016767,2]
[365328050,1749601845914,-257.18,0.00016767,2]
[365328052,1749601845923,-316.1,0.00016767,2]
[365328054,1749601845933,-490.0,0.00016767,2]
[365328056,1749601845942,-365.26,0.00016767,2]
[365328058,1749601845952,-163.19558271,0.00016767,2]
[365328060,1749601845962,-460.0,0.00016767,2]
[365328062,1749601845972,-460.0,0.00016767,2]
[365328064,1749601845982,-460.0,0.00016767,2]
[365328066,1749601845991,-460.0,0.00016767,2]
[365328068,1749601846000,-426.18256274,0.00016767,2]
[365328070,1749601846009,-490.0,0.00016767,2]
[365328072,1749601846018,-639.52,0.00016767,2]
[365328074,1749601846028,-460.0,0.00016767,2]
[365328076,1749601846037,-460.0,0.00016767,2]
[365328078,1749601846047,-460.0,0.00016767,2]
[365328080,1749601846056,-578.03504091,0.00016767,2]
[365328082,1749601846065,-233.89929401,0.00016767,2]
[365328084,1749601846074,-460.0,0.00016767,2]
[365328085,1749601846083,-460.0,0.00016767,2]
[365328087,1749601846093,-460.0,0.00016767,2]
[365328090,1749601846104,-460.0,0.00016767,2]
[365328091,1749601846114,-460.0,0.00016767,2]
[365328094,1749601846124,-460.0,0.00016767,2]
[365328095,1749601846133,-200.0,0.00016767,2]
[365328098,1749601846143,-460.0,0.00016767,2]
[365328099,1749601846151,-460.0,0.00016767,2]
[365328102,1749601846162,-200.0,0.00016767,2]
[365328104,1749601846171,-460.0,0.00016767,2]
[365328106,1749601846180,-462.56265149,0.00016767,2]
[365328108,1749601846190,-462.22708856,0.00016767,2]
[365328110,1749601846199,-191.94,0.00016767,2]
[365328112,1749601846208,-261.75967532,0.00016767,2]
[365328113,1749601846218,-490.0,0.00016767,2]
[365328115,1749601846227,-460.0,0.00016767,2]
[365328117,1749601846236,-289.81667974,0.00016767,2]
[365328119,1749601846245,-490.0,0.00016767,2]
[365328121,1749601846254,-460.0,0.00016767,2]
[365328123,1749601846263,-460.0,0.00016767,2]
[365328125,1749601846273,-460.0,0.00016767,2]
[365328127,1749601846282,-460.0,0.00016767,2]
[365328129,1749601846291,-460.0,0.00016767,2]
[365328131,1749601846301,-490.0,0.00016767,2]
[365328133,1749601846311,-482.03,0.00016767,2]
[365328135,1749601846320,-460.0,0.00016767,2]
[365328137,1749601846330,-460.0,0.00016767,2]
[365328139,1749601846339,-490.0,0.00016767,2]
[365328141,1749601846348,-460.0,0.00016767,2]
[365328143,1749601846357,-289.74422098,0.00016767,2]
[365328145,1749601846366,-460.0,0.00016767,2]
[365328147,1749601846375,-460.0,0.00016767,2]
[365328149,1749601846384,-460.0,0.00016767,2]
[365328151,1749601846393,-652.98,0.00016767,2]
[365328153,1749601846402,-460.0,0.00016767,2]
[365328155,1749601846411,-460.0,0.00016767,2]
[365328157,1749601846420,-283.44,0.00016767,2]
[365328159,1749601846430,-460.0,0.00016767,2]
[365328161,1749601846439,-460.0,0.00016767,2]
[365328163,1749601846448,-490.0,0.00016767,2]
[365328165,1749601846458,-490.0,0.00016767,2]
[365328167,1749601846467,-201.0,0.00016823,3]
[365328169,1749601846476,-790.71,0.00016867,2]
[365328171,1749601846484,-878.86410489,0.000169,2]
[365328173,1749601846494,-490.0,0.00016931,2]
[365328175,1749601846503,-490.0,0.00016931,2]
[365328177,1749601846512,-248.5,0.00016931,2]
[365328178,1749601846521,-223.24,0.00016931,2]
[365328180,1749601846530,-471.28,0.00016931,2]
[365328181,1749601846540,-560.36,0.00016931,2]
[365328183,1749601846550,-255.36,0.00016931,2]
[365328185,1749601846560,-520.68,0.00016931,2]
[365328187,1749601846569,-374.46,0.00016931,2]
[365328188,1749601846579,-490.0,0.00016931,2]
[365328190,1749601846588,-490.0,0.00016931,2]
[365328192,1749601846598,-490.0,0.00016931,2]
[365328194,1749601846607,-499.96,0.00016931,2]
[365328195,1749601846617,-369.26,0.00016931,2]
[365328197,1749601846627,-397.68,0.00016931,2]
[365328199,1749601846636,-366.72,0.00016931,2]
[365328200,1749601846646,-490.0,0.00016931,2]
[365328202,1749601846655,-281.82,0.00016931,2]
[365328204,1749601846664,-490.0,0.00016931,2]
[365328206,1749601846674,-502.92,0.00016931,2]
[365328207,1749601846683,-439.66,0.00016931,2]
[365328209,1749601846692,-490.0,0.00016931,2]
[365328211,1749601846701,-490.0,0.00016931,2]
[365328212,1749601846712,-490.0,0.00016931,2]
[365328214,1749601846721,-410.05,0.00016931,2]
[365328216,1749601846731,-262.52,0.00016931,2]
[365328218,1749601846740,-490.0,0.00016931,2]
[365328220,1749601846748,-572.95,0.00016931,2]
[365328221,1749601846759,-490.0,0.00016931,2]
[365328223,1749601846770,-652.98,0.00016931,2]
[365328225,1749601846778,-316.96,0.00016931,2]
[365328226,1749601846788,-2358.7541502,0.00016931,2]
[365328228,1749601846798,-300.0,0.00017,2]
[365328230,1749601846809,-354.51,0.00017,2]
[365328231,1749601846818,-163.33,0.00017,2]
[365328233,1749601846827,-163.33,0.00017,2]
[365328235,1749601846837,-354.51,0.00017,2]
[365328237,1749601846848,-163.33,0.00017,2]
[365328238,1749601846858,-354.51,0.00017,2]
[365328240,1749601846869,-163.33,0.00017,2]
[365328242,1749601846880,-163.22,0.00017,2]
[365328244,1749601846889,-878.86410468,0.00017003,2]
[365328258,1749601846900,-490.0,0.00017095,2]
[365328260,1749601847077,-370.54,0.00017095,2]
[365328262,1749601847088,-490.0,0.00017095,2]
[365328264,1749601847098,-333.14,0.00017095,2]
[365328266,1749601847108,-555.82,0.00017095,2]
[365328268,1749601847119,-490.0,0.00017095,2]
[365328270,1749601847128,-190.38,0.00017095,2]
[365328272,1749601847137,-490.0,0.00017095,2]
[365328273,1749601847147,-490.0,0.00017095,2]
[365328275,1749601847157,-557.8,0.00017095,2]
[365328277,1749601847167,-490.0,0.00017095,2]
[365328279,1749601847176,-652.98,0.00017095,2]
[365328281,1749601847185,-878.86410468,0.00017107,2]
[365328282,1749601847194,-878.86410468,0.0001721,2]
[365328284,1749601847204,-500.0,0.00017217,2]
[365328286,1749601847213,-437.45115409,0.00017217,2]
[365328288,1749601847223,-1000.0,0.00017217,2]
[365328289,1749601847232,-187.42,0.00017243,2]
[365328291,1749601847241,-483.38,0.0001726,2]
[365328293,1749601847251,-622.9,0.0001726,2]
[365328295,1749601847260,-490.0,0.0001726,2]
[365328297,1749601847269,-490.0,0.0001726,2]
[365328299,1749601847279,-490.0,0.0001726,2]
[365328300,1749601847289,-283.67,0.0001726,2]
[365328302,1749601847298,-652.98,0.0001726,2]
[365328304,1749601847307,-878.86410468,0.00017314,2]
[365328306,1749601847316,-878.86410468,0.00017417,2]
[365328307,1749601847326,-14538.87515216,0.00017421,2]
[365328309,1749601847335,-490.0,0.00017424,2]
[365328310,1749601847344,-260.29353369,0.00017424,2]
[365328311,1749601847353,-490.0,0.00017424,2]
[365328312,1749601847362,-652.98,0.00017424,2]
[365328313,1749601847374,-171.0,0.00017486,2]
[365328314,1749601847383,-878.86410468,0.00017521,2]
[365328315,1749601847392,-167.86,0.00017525,2]
[365328316,1749601847402,-500.0,0.00017572,2]
[365328317,1749601847412,-490.0,0.00017589,2]
[365328318,1749601847422,-490.0,0.00017589,2]
[365328319,1749601847431,-652.98,0.00017589,2]
[365328320,1749601847441,-878.86410468,0.00017624,2]
[365328321,1749601847450,-1000.0,0.00017649,2]
[365328322,1749601847459,-192.54358617,0.00017652,2]
[365328323,1749601847468,-201.0,0.00017653,4]
[365328324,1749601847478,-14538.8751521,0.00017696,2]
[365328325,1749601847488,-878.86410468,0.00017728,2]
[365328326,1749601847497,-490.0,0.00017753,2]
[365328327,1749601847507,-280.50986453,0.00017753,2]
[365328328,1749601847516,-652.98,0.00017753,2]
[365328329,1749601847526,-833.29909032,0.00017753,2]
[365328330,1749601847536,-666.0,0.00017762,2]
[365328331,1749601847545,-500.0,0.00017765,2]
[365328332,1749601847556,-500.0,0.00017808,2]
[365328333,1749601847565,-500.0,0.00017808,2]
[365328334,1749601847575,-333.14414137,0.00017808,2]
[365328335,1749601847585,-500.0,0.00017808,2]
[365328336,1749601847594,-878.86410468,0.00017831,2]
[365328337,1749601847616,-242.5278808,0.000179,2]
[365328339,1749601847628,-242.52788065,0.000179,2]
[365328341,1749601847638,-242.52788065,0.000179,2]
[365328343,1749601847648,-242.52788065,0.000179,2]
[365328345,1749601847660,-242.52788065,0.000179,2]
[365328347,1749601847670,-242.52788065,0.000179,2]
[365328349,1749601847680,-242.52788065,0.000179,2]
[365328351,1749601847690,-242.52788065,0.000179,2]
[365328353,1749601847700,-490.0,0.00017917,2]
[365328355,1749601847710,-652.98,0.00017917,2]
[365328357,1749601847720,-242.52788065,0.00017933,2]
[365328359,1749601847730,-878.86410468,0.00017934,2]
[365328360,1749601847740,-420.0,0.00017963,2]
[365328361,1749601847751,-14538.8751521,0.00017972,2]
[365328362,1749601847762,-10758.1139019,0.00018,2]
[365328363,1749601847776,-7889.33072337,0.00018,2]
[365328364,1749601847787,-186.01,0.00018017,2]
[365328365,1749601847797,-500.0,0.00018037,2]
[365328366,1749601847807,-878.86410468,0.00018038,2]
[365328367,1749601847818,-200.0,0.00018079,2]
[365328368,1749601847828,-600.0,0.00018082,4]
[365328370,1749601847838,-300.0,0.00018082,2]
[365328372,1749601847849,-490.0,0.00018082,2]
[365328374,1749601847860,-652.98,0.00018082,2]
[365328376,1749601847871,-150.0,0.00018086,7]
[365328378,1749601847880,-242.52788065,0.00018112,2]
[365328380,1749601847890,-878.86410468,0.00018141,2]
[365328382,1749601847900,-23900.0,0.0001819,2]
[365328385,1749601847910,-878.86410468,0.00018245,2]
[365328387,1749601847920,-629.35816136,0.00018246,2]
[365328389,1749601847930,-652.98,0.00018246,2]
[365328391,1749601847940,-14538.8751521,0.00018247,2]
[365328393,1749601847950,-242.52788065,0.0001829,2]
[365328395,1749601847959,-878.86410468,0.00018348,2]
[365328397,1749601847970,-652.98,0.0001841,2]
[365328399,1749601847979,-878.86410468,0.00018452,2]
[365328401,1749601847989,-163.33,0.00018468,2]
[365328403,1749601847999,-353.82,0.00018468,2]
[365328405,1749601848009,-242.52788065,0.00018469,2]
[365328407,1749601848019,-201.0,0.00018483,5]
[365328409,1749601848031,-14538.8751521,0.00018523,2]
[365328411,1749601848041,-878.86410468,0.00018555,2]
[365328413,1749601848051,-652.98,0.00018575,2]
[365328415,1749601848062,-207.4,0.00018631,2]
[365328417,1749601848072,-1957.856,0.00018631,2]
[365328419,1749601848082,-151.0,0.00018631,2]
[365328420,1749601848093,-242.52788065,0.00018648,2]
[365328421,1749601848103,-150.0,0.00018652,2]
[365328422,1749601848113,-878.86410468,0.00018659,2]
[365328423,1749601848124,-2030.296672,0.00018686,2]
[365328424,1749601848134,-2612.76,0.000187,2]
[365328425,1749601848144,-165.32,0.00018736,2]
[365328426,1749601848154,-652.98,0.00018739,2]
[365328427,1749601848164,-2105.41764886,0.00018741,2]
[365328428,1749601848174,-878.86410468,0.00018762,2]
[365328429,1749601848183,-784.28634942,0.00018796,2]
[365328430,1749601848193,-14538.8751521,0.00018798,2]
[365328431,1749601848203,-242.52788065,0.00018827,2]
[365328432,1749601848213,-810.36316742,0.00018848,2]
[365328433,1749601848223,-878.86410468,0.00018866,2]
[365328434,1749601848234,-779.76,0.000189,2]
[365328435,1749601848243,-652.98,0.00018904,2]
[365328436,1749601848252,-878.86410468,0.00018969,2]
[365328437,1749601848262,-779.76,0.00019,2]
[365328438,1749601848273,-779.76,0.00019,2]
[365328439,1749601848283,-779.76,0.00019,2]
[365328440,1749601848292,-779.76,0.00019,2]
[365328441,1749601848302,-250.0,0.00019,2]
[365328442,1749601848312,-242.52788065,0.00019006,2]
[365328443,1749601848322,-652.98,0.00019068,2]
[365328444,1749601848332,-878.86410468,0.00019072,2]
[365328445,1749601848342,-14538.8751521,0.00019074,2]
[365328446,1749601848351,-1282.3312,0.00019078,2]
[365328447,1749601848361,-2222.29,0.000191,2]
[365328448,1749601848372,-790.71,0.00019131,2]
[365328449,1749601848382,-878.86410468,0.00019176,2]
[365328450,1749601848391,-500.0,0.00019178,2]
[365328451,1749601848401,-500.0,0.00019178,2]
[365328452,1749601848411,-500.0,0.00019178,2]
[365328453,1749601848420,-500.0,0.00019178,2]
[365328454,1749601848430,-500.0,0.00019178,2]
[365328455,1749601848439,-500.0,0.00019178,2]
[365328456,1749601848449,-500.0,0.00019178,2]
[365328457,1749601848458,-500.0,0.00019178,2]
[365328458,1749601848468,-500.0,0.00019178,2]
[365328459,1749601848477,-500.0,0.00019178,2]
[365328460,1749601848487,-500.0,0.00019178,2]
[365328461,1749601848496,-500.0,0.00019178,2]
[365328462,1749601848506,-500.0,0.00019178,2]
[365328463,1749601848515,-500.0,0.00019178,2]
[365328464,1749601848525,-500.0,0.00019178,2]
[365328465,1749601848534,-500.0,0.00019178,2]
[365328466,1749601848543,-500.0,0.00019178,2]
[365328467,1749601848553,-500.0,0.00019178,2]
[365328468,1749601848562,-500.0,0.00019178,2]
[365328469,1749601848571,-500.0,0.00019178,2]
[365328470,1749601848580,-500.0,0.00019178,2]
[365328471,1749601848590,-500.0,0.00019178,2]
[365328472,1749601848600,-500.0,0.00019178,2]
[365328473,1749601848610,-500.0,0.00019178,2]
[365328474,1749601848622,-500.0,0.00019178,2]
[365328475,1749601848632,-500.0,0.00019178,2]
[365328476,1749601848642,-500.0,0.00019178,2]
[365328477,1749601848653,-500.0,0.00019178,2]
[365328478,1749601848663,-311.54312134,0.00019178,2]
[365328479,1749601848672,-500.0,0.00019178,2]
[365328480,1749601848682,-500.0,0.00019178,2]
[365328481,1749601848692,-500.0,0.00019178,2]
[365328482,1749601848702,-500.0,0.00019178,2]
[365328483,1749601848711,-500.0,0.00019178,2]
[365328484,1749601848721,-500.0,0.00019178,2]
[365328485,1749601848731,-500.0,0.00019178,2]
[365328486,1749601848741,-650.0,0.00019178,2]
[365328487,1749601848750,-151.0,0.00019178,2]
[365328488,1749601848763,-1000.0,0.00019178,2]
[365328489,1749601848773,-1000.0,0.00019178,2]
[365328490,1749601848782,-1000.0,0.00019178,2]
[365328491,1749601848791,-1000.0,0.00019178,2]
[365328492,1749601848802,-1000.0,0.00019178,2]
[365328493,1749601848811,-1000.0,0.00019178,2]
[365328494,1749601848821,-1000.0,0.00019178,2]
[365328495,1749601848830,-1000.0,0.00019178,2]
[365328496,1749601848840,-1000.0,0.00019178,2]
[365328497,1749601848850,-1000.0,0.00019178,2]
[365328498,1749601848860,-1000.0,0.00019178,2]
[365328499,1749601848872,-1000.0,0.00019178,2]
[365328500,1749601848882,-1000.0,0.00019178,2]
[365328501,1749601848892,-1000.0,0.00019178,2]
[365328502,1749601848902,-1000.0,0.00019178,2]
[365328503,1749601848911,-1000.0,0.00019178,2]
[365328504,1749601848921,-1000.0,0.00019178,2]
[365328505,1749601848931,-1000.0,0.00019178,2]
[365328506,1749601848940,-1000.0,0.00019178,2]
[365328507,1749601848950,-1000.0,0.00019178,2]
[365328508,1749601848959,-1000.0,0.00019178,2]
[365328509,1749601848968,-1000.0,0.00019178,2]
[365328510,1749601848977,-1000.0,0.00019178,2]
[365328511,1749601848987,-1000.0,0.00019178,2]
[365328512,1749601848996,-1000.0,0.00019178,2]
[365328513,1749601849005,-1000.0,0.00019178,2]
[365328514,1749601849015,-1000.0,0.00019178,2]
[365328515,1749601849024,-1000.0,0.00019178,2]
[365328516,1749601849033,-1000.0,0.00019178,2]
[365328517,1749601849042,-1000.0,0.00019178,2]
[365328518,1749601849052,-1000.0,0.00019178,2]
[365328519,1749601849062,-869.0,0.00019178,2]
[365328520,1749601849072,-1000.0,0.00019178,2]
[365328521,1749601849081,-1000.0,0.00019178,2]
[365328522,1749601849091,-1000.0,0.00019178,2]
[365328523,1749601849101,-1000.0,0.00019178,2]
[365328524,1749601849110,-1000.0,0.00019178,2]
[365328525,1749601849121,-1000.0,0.00019178,2]
[365328526,1749601849130,-1000.0,0.00019178,2]
[365328527,1749601849138,-1000.0,0.00019178,2]
[365328528,1749601849147,-1000.0,0.00019178,2]
[365328529,1749601849156,-163.33,0.00019178,2]
[365328530,1749601849165,-163.33,0.00019178,2]
[365328531,1749601849175,-326.6,0.00019178,2]
[365328532,1749601849185,-242.52788065,0.00019185,2]
[365328533,1749601849194,-162.52,0.00019193,2]
[365328534,1749601849203,-150.0,0.00019199,2]
[365328535,1749601849213,-163.27,0.00019199,2]
[365328536,1749601849222,-214.67798108,0.00019205,2]
[365328537,1749601849231,-652.98,0.00019232,2]
[365328538,1749601849241,-878.86410468,0.00019279,2]
[365328539,1749601849252,-256.579833,0.00019304,2]
[365328540,1749601849261,-201.0,0.00019314,6]
[365328541,1749601849271,-14538.8751521,0.00019349,2]
[365328542,1749601849280,-500.0,0.00019363,2]
[365328543,1749601849290,-242.52788065,0.00019363,2]
[365328544,1749601849299,-878.86410468,0.00019383,2]
[365328545,1749601849309,-652.98,0.00019397,2]
[365328546,1749601849319,-3702.91159465,0.000194,3]
[365328547,1749601855757,-490.0,0.00016438,2]
[365328548,1749601855769,-490.0,0.00016931,2]
[365328549,1749601855781,-4963.65167444,0.000194,3]
[365328550,1749601856380,-490.0,0.00016438,2]
[365328551,1749601856390,-490.0,0.00016438,2]
[365328552,1749601856399,-490.0,0.00016438,2]
[365328553,1749601856408,-490.0,0.00016438,2]
[365328554,1749601856416,-186.4884675,0.00016438,2]
[365328555,1749601856428,-303.5115325,0.00016438,2]
[365328556,1749601856436,-411.2181775,0.00016438,2]
[365328557,1749601856447,-78.7818225,0.00016438,2]
[365328558,1749601856457,-360.0,0.00016438,2]
[365328559,1749601856466,-490.0,0.00016438,2]
[365328560,1749601856475,-490.0,0.00016438,2]
[365328561,1749601856484,-480.0,0.00016438,2]
[365328562,1749601856493,-490.0,0.00016438,2]